bitfinex/quotes_ETHUSD_20250526
["timestamp","ask_amount","ask_price","bid_price","bid_amount"]
[1748263829617,8.71638125,2566.2,2566.1,8.0]
[1748263830102,8.71638125,2566.2,2566.1,8.46629745]
[1748263831175,8.71638125,2566.2,2566.1,8.0]
[1748263831360,0.77938125,2566.2,2566.1,8.0]
[1748263831561,8.71638125,2566.2,2566.1,9.33718648]
[1748263832002,0.77938125,2566.2,2566.1,9.33718648]
[1748263832160,8.71638125,2566.2,2566.1,9.33718648]
[1748263835183,4.82238125,2566.2,2566.1,9.33718648]
[1748263835383,0.77933688,2566.3,2566.1,9.33718648]
[1748263835721,4.043,2566.8,2566.4,0.7505]
[1748263835920,4.043,2566.8,2566.7,11.34406723]
[1748263836123,4.043,2566.8,2566.7,14.68813446]
[1748263836321,0.1,2566.9,2566.8,8.7505]
[1748263838318,0.1,2566.9,2566.8,13.19640151]
[1748263838652,0.1,2566.9,2566.8,12.11095971]
[1748263838817,0.1,2566.9,2566.8,11.56095971]
[1748263839427,0.1,2566.9,2566.8,11.95528785]
[1748263840552,0.1,2566.9,2566.8,15.85118936]
[1748263840854,0.1,2566.9,2566.8,11.95528785]
[1748263843631,0.1,2566.9,2566.8,12.57305143]
[1748263844530,0.1,2566.9,2566.8,13.10665895]
[1748263845918,0.1,2566.9,2566.8,12.95183474]
[1748263849154,0.1,2566.9,2566.8,12.48889537]
[1748263849960,0.1,2566.9,2566.8,12.95183474]
[1748263854988,0.87914994,2566.9,2566.8,0.85726751]
[1748263855187,0.87914994,2566.9,2566.8,4.20133474]
[1748263855365,0.87914994,2566.9,2566.8,12.20133474]
[1748263855573,0.87914994,2566.9,2566.8,4.20133474]
[1748263856589,0.87914994,2566.9,2566.8,3.73839537]
[1748263856993,0.87914994,2566.9,2566.8,3.34406723]
[1748263857816,0.77921065,2566.7,2566.6,3.34406723]
[1748263857973,4.67121065,2566.7,2566.6,11.34406723]
[1748263859912,4.67121065,2566.7,2566.6,8.0]
[1748263860120,5.44031065,2566.7,2566.6,8.0]
[1748263862317,1.54831065,2566.7,2566.6,11.34406723]
[1748263862617,4.142,2566.9,2566.7,8.0]
[1748263862804,4.142,2566.9,2566.8,11.34406723]
[1748263862983,4.142,2566.9,2566.8,12.17256723]
[1748263863499,4.92114994,2566.9,2566.8,12.17256723]
[1748263863712,4.92114994,2566.9,2566.8,13.60268981]
[1748263863915,4.92114994,2566.9,2566.8,12.77418981]
[1748263864503,4.92114994,2566.9,2566.8,13.23712918]
[1748263865123,4.92114994,2566.9,2566.8,8.46293937]
[1748263865445,8.81414994,2566.9,2566.8,8.0]
[1748263868129,4.92114994,2566.9,2566.8,8.0]
[1748263868333,8.81414994,2566.9,2566.8,8.0]
[1748263873063,4.92114994,2566.9,2566.8,8.0]
[1748263873242,8.81414994,2566.9,2566.8,8.0]
[1748263874867,0.87914994,2566.9,2566.8,8.0]
[1748263875072,8.81514994,2566.9,2566.8,8.0]
[1748263877963,0.87914994,2566.9,2566.8,8.0]
[1748263878172,8.81514994,2566.9,2566.8,8.0]
[1748263880569,4.92214994,2566.9,2566.8,8.0]
[1748263880732,8.81514994,2566.9,2566.8,8.0]
[1748263882576,9.56954994,2566.9,2566.8,8.0]
[1748263886188,8.81514994,2566.9,2566.8,8.0]
[1748263886383,8.81314994,2566.9,2566.8,8.0]
[1748263887293,8.81314994,2566.9,2566.8,8.4645879]
[1748263888090,9.59234994,2566.9,2566.8,8.4645879]
[1748263888248,9.59234994,2566.9,2566.8,0.4645879]
[1748263888448,10.14234994,2566.9,2566.8,0.4645879]
[1748263889551,0.77939285,2566.1,2566.0,3.34406723]
[1748263889793,8.71439285,2566.1,2566.0,11.34406723]
[1748263892189,0.77939285,2566.1,2566.0,12.56350014]
[1748263892398,4.67239285,2566.1,2566.0,13.31960014]
[1748263892596,0.7851,2566.8,2566.0,16.66366737]
[1748263892802,8.7142334,2566.7,2566.6,3.34406723]
[1748263892995,8.7142334,2566.7,2566.6,11.34406723]
[1748263893199,8.7142334,2566.7,2566.6,8.0]
[1748263895812,0.77933211,2566.3,2566.2,8.0]
[1748263896115,4.67233211,2566.3,2566.2,8.0]
[1748263906722,0.77933211,2566.3,2566.2,8.0]
[1748263906922,4.67333211,2566.3,2566.2,8.0]
[1748263908053,8.71633211,2566.3,2566.2,8.0]
[1748263908358,0.77933211,2566.3,2566.2,9.54701345]
[1748263908521,8.71633211,2566.3,2566.2,10.34231345]
[1748263909629,4.82233211,2566.3,2566.2,10.34231345]
[1748263909948,8.71633211,2566.3,2566.2,10.34231345]
[1748263912282,8.71633211,2566.3,2566.2,8.7953]
[1748263912886,4.82233211,2566.3,2566.2,8.7953]
[1748263913085,8.71633211,2566.3,2566.2,8.7953]
[1748263913987,4.67333211,2566.3,2566.2,8.7953]
[1748263916547,0.77933211,2566.3,2566.2,8.7953]
[1748263916747,4.67333211,2566.3,2566.2,8.7953]
[1748263917583,4.67333211,2566.3,2566.2,9.2598879]
[1748263917990,0.77933211,2566.3,2566.2,9.2598879]
[1748263918194,0.77933211,2566.3,2566.2,10.58205977]
[1748263918371,4.67333211,2566.3,2566.2,10.58205977]
[1748263918920,0.77933211,2566.3,2566.2,10.11747187]
[1748263919077,4.67333211,2566.3,2566.2,10.11747187]
[1748263923242,0.77926296,2566.6,2566.3,0.7637]
[1748263923534,0.77926296,2566.6,2566.5,12.10776723]
[1748263923535,4.67326296,2566.6,2566.5,12.10776723]
[1748263923706,4.044,2566.8,2566.6,8.0]
[1748263923893,4.044,2566.8,2566.7,3.34406723]
[1748263924093,7.938,2566.8,2566.7,11.34406723]
[1748263924337,8.71718381,2566.8,2566.7,12.6013012]
[1748263924940,0.77918381,2566.8,2566.7,12.6013012]
[1748263925239,4.67318381,2566.8,2566.7,13.4100012]
[1748263927040,4.67318381,2566.8,2566.7,13.87388204]
[1748263927745,4.67218381,2566.8,2566.7,13.87388204]
[1748263929641,0.77918381,2566.8,2566.7,13.87388204]
[1748263929950,4.67218381,2566.8,2566.7,13.87388204]
[1748263930736,0.77918381,2566.8,2566.7,13.87388204]
[1748263930941,4.67218381,2566.8,2566.7,13.87388204]
[1748263934136,0.77918381,2566.8,2566.7,13.87388204]
[1748263934338,4.77217928,2566.9,2566.8,8.0]
[1748263934541,4.77217928,2566.9,2566.8,9.3873882]
[1748263934740,0.1,2566.9,2566.8,9.3873882]
[1748263934943,0.1,2566.9,2566.8,13.53605543]
[1748263935123,0.87901752,2567.4,2567.1,0.8046]
[1748263935464,0.87901752,2567.4,2567.3,11.34406723]
[1748263938339,4.77201752,2567.4,2567.3,12.64487813]
[1748263940136,0.87901752,2567.4,2567.3,12.64487813]
[1748263940340,0.1,2567.4,2567.3,13.41557813]
[1748263940576,0.1,2567.4,2567.3,17.84203335]
[1748263941450,0.1,2567.4,2567.3,18.45979693]
[1748263941849,0.1,2567.4,2567.3,14.03334171]
[1748263942393,0.1,2567.4,2567.3,17.92848446]
[1748263943008,4.72086119,2567.9,2567.4,8.0]
[1748263943303,0.05,2567.9,2567.8,3.34406723]
[1748263943510,0.05,2567.9,2567.8,15.45393446]
[1748263943855,0.05,2567.9,2567.8,19.34831875]
[1748263944057,0.05,2567.9,2567.8,12.30651622]
[1748263944387,0.05,2567.9,2567.8,13.53716784]
[1748263945289,0.05,2567.9,2567.8,13.99900259]
[1748263946689,0.05,2567.9,2567.8,13.53716784]
[1748263947824,0.82884652,2567.9,2567.8,13.53716784]
[1748263948421,0.82884652,2567.9,2567.8,3.34406723]
[1748263950181,8.75984652,2567.9,2567.8,3.34406723]
[1748263950683,0.7789982,2567.4,2567.3,0.46183475]
[1748263950922,0.7789982,2567.4,2567.3,3.80590198]
[1748263951889,0.7789982,2567.4,2567.3,3.34406723]
[1748263956736,0.7789982,2567.4,2567.3,4.10646723]
[1748263956917,0.7789982,2567.4,2567.3,5.40285352]
[1748263959731,0.7789982,2567.4,2567.3,3.34406723]
[1748263960046,0.7789982,2567.4,2567.3,11.34406723]
[1748263965143,0.7789982,2567.4,2567.3,11.80590198]
[1748263968457,0.77896066,2567.6,2567.4,8.0]
[1748263968629,0.05,2567.9,2567.6,8.0]
[1748263968630,3.942,2567.9,2567.6,8.0]
[1748263968831,0.77887685,2567.8,2567.7,11.34406723]
[1748263969454,4.72085328,2567.9,2567.7,7.14996921]
[1748263969455,0.82887459,2567.9,2567.7,7.14996921]
[1748263969654,0.82887459,2567.9,2567.8,1.51499692]
[1748263970748,0.77887685,2567.8,2567.7,3.80590198]
[1748263971054,0.77887685,2567.8,2567.7,3.34406723]
[1748263971363,0.77887685,2567.8,2567.7,11.34406723]
[1748263972064,0.77887685,2567.8,2567.7,11.80732828]
[1748263973160,0.77887685,2567.8,2567.7,11.34406723]
[1748263973363,0.82886437,2567.9,2567.8,8.0]
[1748263973657,0.82886437,2567.9,2567.7,4.62265031]
[1748263973875,0.77887685,2567.8,2567.7,4.62265031]
[1748263979207,0.77887685,2567.8,2567.7,12.62265031]
[1748263979572,0.77887685,2567.8,2567.7,11.34406723]
[1748263982073,0.05,2567.9,2567.8,8.0]
[1748263982274,4.71985414,2567.9,2567.8,8.0]
[1748263983210,4.71985414,2567.9,2567.7,3.34406723]
[1748263983418,4.71985414,2567.9,2567.7,3.96183081]
[1748263984079,4.71985414,2567.9,2567.8,8.0]
[1748263986831,3.941,2567.9,2567.8,8.0]
[1748263987033,0.05,2567.9,2567.8,9.58564977]
[1748263987537,0.82884652,2567.9,2567.8,9.58564977]
[1748263988645,0.05,2567.9,2567.8,17.02394804]
[1748263988829,0.05,2567.9,2567.8,14.46787622]
[1748263989000,0.05,2567.9,2567.8,17.83094804]
[1748263989819,0.05,2567.9,2567.8,18.26084929]
[1748263990941,0.05,2567.9,2567.8,14.366465]
[1748263991354,0.05,2567.9,2567.8,18.26084929]
[1748263991501,0.05,2567.9,2567.8,14.366465]
[1748263991849,0.05,2567.9,2567.8,18.26084929]
[1748263992202,0.05,2567.9,2567.8,14.366465]
[1748263993043,0.05,2567.9,2567.8,15.936465]
[1748263994724,0.05,2567.9,2567.8,19.83084929]
[1748263994952,0.05,2567.9,2567.8,20.36216176]
[1748263995120,0.77867682,2568.5,2568.0,11.89395022]
[1748263995327,0.77867682,2568.5,2568.4,3.34406723]
[1748263996256,0.77867682,2568.5,2568.4,11.80740508]
[1748263996455,4.6696287,2568.7,2568.4,11.80740508]
[1748263996456,8.7155807,2568.8,2568.5,8.0]
[1748263996636,0.77860396,2568.7,2568.6,13.32480774]
[1748263996950,0.77860396,2568.7,2568.6,13.70857318]
[1748263997644,0.77860396,2568.7,2568.6,11.72783267]
[1748263997863,1.53700396,2568.7,2568.6,11.72783267]
[1748263998061,1.53700396,2568.7,2568.6,12.19117052]
[1748263998262,1.53700396,2568.7,2568.6,11.80740508]
[1748263999469,1.53700396,2568.7,2568.6,11.34406723]
[1748264002169,5.42700396,2568.7,2568.6,11.34406723]
[1748264006679,1.5637949,2568.4,2568.3,3.80740508]
[1748264006881,5.4537949,2568.4,2568.3,3.80740508]
[1748264007041,5.4537949,2568.4,2568.3,11.80740508]
[1748264007898,5.4537949,2568.4,2568.3,11.34406723]
[1748264011909,9.4927949,2568.4,2568.3,11.34406723]
[1748264012206,9.4927949,2568.4,2568.3,8.0]
[1748264012370,9.4927949,2568.4,2568.3,11.34406723]
[1748264013570,1.5637949,2568.4,2568.3,11.34406723]
[1748264013769,9.4937949,2568.4,2568.3,11.34406723]
[1748264014507,8.7086949,2568.4,2568.3,11.34406723]
[1748264014705,0.7786949,2568.4,2568.3,11.34406723]
[1748264015006,8.7086949,2568.4,2568.3,11.34406723]
[1748264016489,0.7786949,2568.4,2568.3,11.34406723]
[1748264016683,0.55,2569.1,2568.4,8.0]
[1748264016684,0.7657,2569.1,2568.4,8.0]
[1748264016907,0.82856095,2568.9,2568.8,14.68813446]
[1748264017120,0.82856095,2568.9,2568.8,15.44543446]
[1748264017385,0.05,2568.9,2568.8,15.44543446]
[1748264017585,0.05,2568.9,2568.8,17.45331576]
[1748264018224,0.82854334,2568.9,2568.8,14.10924853]
[1748264018428,0.82854334,2568.9,2568.8,8.46333785]
[1748264018589,0.82854334,2568.9,2568.8,11.80740508]
[1748264020029,4.71854334,2568.9,2568.8,11.34406723]
[1748264020346,0.82854334,2568.9,2568.8,11.34406723]
[1748264021335,0.82854334,2568.9,2568.8,11.80740508]
[1748264021724,0.82854334,2568.9,2568.8,13.04992397]
[1748264022869,0.82854334,2568.9,2568.8,13.83442397]
[1748264025263,0.05,2568.9,2568.8,13.37108612]
[1748264026281,0.05,2568.9,2568.8,13.83442397]
[1748264028086,0.82854334,2568.9,2568.8,13.83442397]
[1748264028284,0.05,2568.9,2568.8,13.83442397]
[1748264028459,0.82854334,2568.9,2568.8,13.83442397]
[1748264030584,0.05,2568.9,2568.8,13.83442397]
[1748264032261,0.05,2568.9,2568.8,17.1784912]
[1748264032460,0.05,2568.9,2568.8,21.07135946]
[1748264032788,0.77840896,2569.4,2569.0,0.8045]
[1748264032789,0.77842805,2569.3,2569.0,0.8045]
[1748264032992,0.77842805,2569.3,2569.2,8.0]
[1748264036906,0.77841915,2569.4,2569.2,8.0]
[1748264037457,0.77842213,2569.3,2569.2,8.0]
[1748264037658,0.77848273,2569.1,2569.0,0.46186884]
[1748264037911,0.77848273,2569.1,2569.0,11.80593607]
[1748264038109,0.77843426,2569.3,2569.0,8.75066718]
[1748264038267,0.77843426,2569.3,2569.2,11.34406723]
[1748264038605,0.77833812,2569.6,2569.2,4.11446723]
[1748264038821,4.66738194,2569.5,2569.2,0.7704]
[1748264039107,0.77838194,2569.5,2569.4,11.34406723]
[1748264039294,4.66738194,2569.5,2569.4,11.34406723]
[1748264040930,0.77838194,2569.5,2569.4,11.34406723]
[1748264041417,0.77838194,2569.5,2569.4,11.73588018]
[1748264042328,4.66734953,2569.6,2569.5,8.0]
[1748264042479,0.77836154,2569.5,2569.4,5.03269508]
[1748264042674,0.77834837,2569.6,2569.4,5.03269508]
[1748264043233,0.77830598,2569.7,2569.5,8.7542]
[1748264043381,0.77830598,2569.7,2569.6,11.34406723]
[1748264044094,0.77828777,2569.8,2569.7,8.0]
[1748264044299,0.77828777,2569.8,2569.6,4.72275674]
[1748264044623,0.77827879,2569.8,2569.6,4.72275674]
[1748264044824,0.77828821,2569.8,2569.6,4.72275674]
[1748264045027,0.77830096,2569.7,2569.6,4.72275674]
[1748264045713,0.77830096,2569.7,2569.6,5.18462558]
[1748264046227,0.77828865,2569.8,2569.6,5.18462558]
[1748264046414,0.77828865,2569.8,2569.7,1.31846256]
[1748264046612,0.82825252,2569.9,2569.7,1.31846256]
[1748264046924,0.82825252,2569.9,2569.8,0.46186884]
[1748264047423,0.82825252,2569.9,2569.8,11.80593607]
[1748264048015,0.82825252,2569.9,2569.8,11.34406723]
[1748264048211,0.82825252,2569.9,2569.8,12.79437604]
[1748264049636,0.82824039,2569.9,2569.8,12.79437604]
[1748264051066,0.05,2570.9,2570.4,0.7767]
[1748264051223,0.82795773,2570.9,2570.8,11.34406723]
[1748264052258,0.82793768,2570.9,2570.8,12.13756723]
[1748264052461,0.82793768,2570.9,2570.8,11.34406723]
[1748264053381,0.82793768,2570.9,2570.8,8.0]
[1748264053680,0.82793768,2570.9,2570.8,11.34406723]
[1748264054985,0.82793768,2570.9,2570.8,11.73070643]
[1748264055141,0.05,2570.9,2570.8,12.90377707]
[1748264055337,0.82793768,2570.9,2570.8,13.69957707]
[1748264056249,0.05,2570.9,2570.8,24.82148403]
[1748264056887,0.1,2571.4,2571.3,8.8014]
[1748264057087,0.1,2571.4,2571.3,13.90503006]
[1748264057291,2.55235464,2572.6,2571.8,13.23972724]
[1748264057444,2.55235464,2572.6,2571.8,19.3778617]
[1748264057645,0.77753473,2572.3,2571.8,16.03953446]
[1748264057858,1.4441658,2572.4,2571.8,19.3778617]
[1748264058083,0.77755845,2572.2,2571.8,14.4720991]
[1748264058282,0.77756618,2572.2,2571.8,14.4720991]
[1748264058445,0.77758121,2572.1,2571.8,14.4720991]
[1748264058641,0.77763019,2572.0,2571.8,12.14546723]
[1748264059298,2.78944296,2571.9,2571.8,12.14546723]
[1748264059478,2.01180775,2571.9,2571.8,12.14546723]
[1748264059663,0.05,2571.9,2571.8,12.14546723]
[1748264061545,0.82763521,2571.9,2571.8,12.14546723]
[1748264061684,0.82763521,2571.9,2571.8,11.34406723]
[1748264061884,0.77766544,2571.8,2571.7,3.34406723]
[1748264062117,4.81966544,2571.8,2571.7,11.34406723]
[1748264063287,0.77766544,2571.8,2571.7,11.34406723]
[1748264065148,0.05,2571.9,2571.7,4.47847395]
[1748264065305,0.05,2571.9,2571.8,12.13316723]
[1748264065639,0.05,2571.9,2571.8,19.90749447]
[1748264065828,0.77753041,2572.3,2571.9,8.0]
[1748264066004,0.66666667,2572.4,2572.3,8.7891]
[1748264066720,0.66666667,2572.4,2572.3,9.18666789]
[1748264066908,0.66666667,2572.4,2572.3,10.8283414]
[1748264067303,0.66666667,2572.4,2572.3,11.1939476]
[1748264067720,0.66666667,2572.4,2572.3,15.08151903]
[1748264067917,0.66666667,2572.4,2572.3,11.1939476]
[1748264068117,0.66666667,2572.4,2572.3,15.0799476]
[1748264068522,0.66666667,2572.4,2572.3,11.1939476]
[1748264068807,1.44415073,2572.4,2572.3,9.55227409]
[1748264069122,1.44415073,2572.4,2572.3,8.76317409]
[1748264069350,0.66666667,2572.4,2572.3,8.76317409]
[1748264069647,4.198,2572.7,2572.3,8.76317409]
[1748264069648,4.198,2572.7,2572.3,8.39756789]
[1748264069833,0.05,2572.9,2572.6,4.16686723]
[1748264070041,0.82734719,2572.9,2572.8,11.34406723]
[1748264070411,0.82734719,2572.9,2572.8,3.34406723]
[1748264072913,0.82734719,2572.9,2572.8,0.38034717]
[1748264073239,0.82734719,2572.9,2572.1,0.7818]
[1748264073549,0.82734719,2572.9,2572.0,0.46186884]
[1748264073550,0.77757474,2572.1,2572.0,0.46186884]
[1748264073753,0.77757474,2572.1,2572.0,3.80593607]
[1748264073950,0.77757474,2572.1,2572.0,7.1500033]
[1748264074151,4.97340045,2572.7,2572.1,8.0]
[1748264074336,4.97339824,2572.7,2572.6,11.34406723]
[1748264074537,4.97339824,2572.7,2572.6,3.34406723]
[1748264075471,0.77742361,2572.6,2572.1,8.0]
[1748264075631,0.77745383,2572.5,2572.1,8.0]
[1748264075833,0.77743135,2572.6,2572.2,1.33338508]
[1748264076158,0.77748406,2572.4,2572.2,1.33338508]
[1748264076321,0.77751428,2572.3,2572.1,8.0]
[1748264076743,0.77751428,2572.3,2572.2,11.34406723]
[1748264076944,0.77751428,2572.3,2572.2,11.7099901]
[1748264078135,0.77751428,2572.3,2572.2,11.34406723]
[1748264080085,0.77746385,2572.5,2572.2,3.34406723]
[1748264080379,0.77746385,2572.5,2572.4,11.34406723]
[1748264082278,0.77746385,2572.5,2572.4,11.71142202]
[1748264082696,0.77744013,2572.6,2572.5,8.0]
[1748264082902,0.77740863,2572.7,2572.4,3.71142202]
[1748264083189,0.05,2572.9,2572.7,8.0]
[1748264083505,0.82733297,2572.9,2572.8,11.34406723]
[1748264084316,1.77726348,2573.2,2572.9,8.0]
[1748264084598,1.0,2573.2,2573.1,8.0]
[1748264084749,1.0,2573.2,2573.1,11.34406723]
[1748264084750,2.54514234,2573.2,2573.1,11.34406723]
[1748264085086,2.54514234,2573.2,2573.1,8.0]
[1748264085385,9.85724234,2573.2,2573.1,8.0]
[1748264086291,9.85724234,2573.2,2573.1,8.36735479]
[1748264086853,10.62514234,2573.2,2573.1,0.36735479]
[1748264087587,0.77730275,2573.0,2572.9,15.27340602]
[1748264088982,4.97330275,2573.0,2572.9,15.27340602]
[1748264089993,5.78380275,2573.0,2572.9,0.36735479]
[1748264090883,5.78380275,2573.0,2572.6,0.36735479]
[1748264090884,0.77739339,2572.7,2572.6,0.36735479]
[1748264091094,4.66139339,2572.7,2572.6,0.36735479]
[1748264092080,0.77748406,2572.4,2572.3,0.36735479]
[1748264092455,1.54918406,2572.4,2572.3,0.36735479]
[1748264092792,5.43318406,2572.4,2572.3,0.36735479]
[1748264093703,1.54918406,2572.4,2572.3,0.36735479]
[1748264093870,9.62918406,2572.4,2572.3,0.36735479]
[1748264095309,0.77748406,2572.4,2572.3,0.36735479]
[1748264097474,0.77748406,2572.4,2572.3,0.82922363]
[1748264098193,1.60658406,2572.4,2572.3,0.82922363]
[1748264098777,0.77754451,2572.2,2572.1,0.36735479]
[1748264098981,4.66154451,2572.2,2572.1,0.36735479]
[1748264099820,0.77757474,2572.1,2572.0,0.36735479]
[1748264101188,0.77760497,2572.0,2571.9,0.36735479]
[1748264101408,4.99060497,2572.0,2571.9,0.36735479]
[1748264102626,0.77766544,2571.8,2571.7,0.36735479]
[1748264106063,0.77769568,2571.7,2571.6,0.36735479]
[1748264107150,1.59549568,2571.7,2571.6,0.36735479]
[1748264107556,0.77778641,2571.4,2571.3,0.36735479]
[1748264108227,0.77781666,2571.3,2571.2,0.36735479]
[1748264108629,4.99081666,2571.3,2571.2,0.36735479]
[1748264110680,6.31641666,2571.3,2571.2,0.36735479]
[1748264111919,2.10341666,2571.3,2571.2,0.36735479]
[1748264112151,10.20341666,2571.3,2571.2,0.36735479]
[1748264112311,0.77784691,2571.2,2571.1,0.05]
[1748264112629,8.87784691,2571.2,2571.1,0.05]
[1748264113149,9.70604691,2571.2,2571.1,0.05]
[1748264113330,1.60604691,2571.2,2571.1,0.05]
[1748264113711,9.70604691,2571.2,2571.1,0.05]
[1748264115209,1.60604691,2571.2,2571.1,0.05]
[1748264115405,9.70704691,2571.2,2571.1,0.05]
[1748264116651,1.60604691,2571.2,2571.1,0.05]
[1748264116815,9.70704691,2571.2,2571.1,0.05]
[1748264118766,0.77784691,2571.2,2571.1,0.05]
[1748264118918,4.99284691,2571.2,2571.1,14.96725779]
[1748264119251,4.99284691,2571.2,2571.1,8.05]
[1748264119411,5.77014691,2571.2,2571.1,8.05]
[1748264120321,0.77784691,2571.2,2571.1,8.05]
[1748264120523,8.87884691,2571.2,2571.1,8.05]
[1748264120766,8.87884691,2571.2,2571.1,8.8007]
[1748264120965,8.87884691,2571.2,2571.1,8.05]
[1748264123156,4.99284691,2571.2,2571.1,8.05]
[1748264124054,5.77394691,2571.2,2571.1,8.05]
[1748264124749,5.77394691,2571.2,2571.1,0.05]
[1748264131726,9.66094691,2571.2,2571.1,0.05]
[1748264133185,10.21094691,2571.2,2571.1,0.05]
[1748264133773,10.19694691,2571.2,2571.1,0.05]
[1748264134930,14.28494691,2571.2,2571.1,0.05]
[1748264135074,2.09494691,2571.2,2571.1,0.05]
[1748264135613,10.23494691,2571.2,2571.1,0.05]
[1748264135986,6.34794691,2571.2,2571.1,0.05]
[1748264136186,10.23494691,2571.2,2571.1,0.05]
[1748264143833,60.23494691,2571.2,2571.1,0.05]
[1748264147263,56.34794691,2571.2,2571.1,0.05]
[1748264147434,60.23494691,2571.2,2571.1,0.05]
[1748264150028,72.21294691,2571.2,2571.1,0.05]
[1748264152796,68.32594691,2571.2,2571.1,0.05]
[1748264153093,72.21294691,2571.2,2571.1,0.05]
[1748264154177,63.68794691,2571.2,2571.1,0.05]
[1748264154397,50.77784691,2571.2,2571.1,0.05]
[1748264154686,55.03084691,2571.2,2571.1,0.05]
[1748264154893,50.77784691,2571.2,2571.1,0.05]
[1748264155045,58.91884691,2571.2,2571.1,0.05]
[1748264155742,59.46884691,2571.2,2571.1,0.05]
[1748264155955,0.77799821,2570.7,2570.6,0.8281]
[1748264156183,4.66599821,2570.7,2570.6,0.8281]
[1748264156857,4.66599821,2570.7,2570.6,12.1546205]
[1748264157649,4.66599821,2570.7,2570.6,12.5249973]
[1748264158991,4.66599821,2570.7,2570.6,11.6968973]
[1748264159155,4.66599821,2570.7,2570.6,8.3703768]
[1748264159987,5.21599821,2570.7,2570.6,0.3703768]
[1748264161562,0.77805874,2570.5,2570.4,8.0]
[1748264161748,5.00705874,2570.5,2570.4,8.0]
[1748264162447,8.89505874,2570.5,2570.4,8.0]
[1748264162783,8.89505874,2570.5,2570.4,8.37066861]
[1748264162962,8.89505874,2570.5,2570.4,10.24592414]
[1748264164161,8.89505874,2570.5,2570.4,13.57244464]
[1748264164351,0.77805874,2570.5,2570.4,13.57244464]
[1748264164551,8.89505874,2570.5,2570.4,13.57244464]
[1748264165490,8.89505874,2570.5,2570.4,12.48218911]
[1748264165694,8.89505874,2570.5,2570.4,9.15566861]
[1748264166403,8.89505874,2570.5,2570.4,8.785]
[1748264166575,8.89505874,2570.5,2570.4,9.15529848]
[1748264169004,5.00705874,2570.5,2570.4,9.15529848]
[1748264169208,8.89405874,2570.5,2570.4,9.15529848]
[1748264169619,5.00705874,2570.5,2570.4,9.15529848]
[1748264169905,8.89405874,2570.5,2570.4,9.15529848]
[1748264172321,0.77805874,2570.5,2570.4,9.15529848]
[1748264172607,8.89405874,2570.5,2570.4,9.85587546]
[1748264175247,0.77805874,2570.5,2570.4,9.85587546]
[1748264175548,8.89405874,2570.5,2570.4,9.85587546]
[1748264178210,8.89405874,2570.5,2570.4,10.31874857]
[1748264178553,8.116,2570.5,2570.4,10.31874857]
[1748264178937,8.89405874,2570.5,2570.4,10.31874857]
[1748264179109,8.89405874,2570.5,2570.4,9.85587546]
[1748264181053,5.00705874,2570.5,2570.4,9.85587546]
[1748264181251,8.89405874,2570.5,2570.4,9.85587546]
[1748264183816,4.66505874,2570.5,2570.4,9.85587546]
[1748264184124,0.77805874,2570.5,2570.4,10.47365926]
[1748264184442,4.66505874,2570.5,2570.4,10.47365926]
[1748264184652,3.887,2570.5,2570.4,10.47365926]
[1748264185855,4.66505874,2570.5,2570.4,10.47365926]
[1748264187516,50.0,2571.2,2570.5,0.7622]
[1748264187717,50.77784691,2571.2,2571.1,11.3265205]
[1748264187914,58.84484691,2571.2,2571.1,11.3265205]
[1748264188941,58.84484691,2571.2,2571.1,11.69681898]
[1748264189346,54.95784691,2571.2,2571.1,11.69681898]
[1748264189660,58.84484691,2571.2,2571.1,11.69681898]
[1748264189980,54.95784691,2571.2,2571.1,11.69681898]
[1748264190267,58.84484691,2571.2,2571.1,11.69681898]
[1748264194480,54.95784691,2571.2,2571.1,11.69681898]
[1748264194683,58.84484691,2571.2,2571.1,11.69681898]
[1748264195050,58.84384691,2571.2,2571.1,11.69681898]
[1748264196878,54.95684691,2571.2,2571.1,11.69681898]
[1748264197193,58.84384691,2571.2,2571.1,11.69681898]
[1748264197694,58.84384691,2571.2,2571.1,8.37029848]
[1748264197978,59.66564691,2571.2,2571.1,0.37029848]
[1748264198787,0.77790742,2571.0,2570.9,8.0]
[1748264198957,4.66490742,2571.0,2570.9,8.0]
[1748264200197,4.66490742,2571.0,2570.9,8.37056377]
[1748264200575,0.77790742,2571.0,2570.9,8.37056377]
[1748264200767,4.66490742,2571.0,2570.9,8.37056377]
[1748264201093,0.77790742,2571.0,2570.9,8.37056377]
[1748264201277,4.66490742,2571.0,2570.9,8.37056377]
[1748264202451,0.77790742,2571.0,2570.9,8.37056377]
[1748264202803,50.0,2571.2,2570.9,13.71258829]
[1748264203007,8.066,2571.1,2570.9,13.71258829]
[1748264203285,4.179,2571.1,2571.0,11.3265205]
[1748264203444,8.066,2571.1,2571.0,11.3265205]
[1748264204059,8.066,2571.1,2571.0,8.37056377]
[1748264204248,8.066,2571.1,2571.0,9.80360098]
[1748264204490,50.0,2571.2,2571.1,8.0]
[1748264204680,50.0,2571.2,2571.1,8.7685]
[1748264204681,53.887,2571.2,2571.1,8.7685]
[1748264205269,50.0,2571.2,2571.1,8.7685]
[1748264205573,53.887,2571.2,2571.1,12.23391291]
[1748264207690,50.0,2571.2,2571.1,12.23391291]
[1748264208179,50.0,2571.2,2571.1,12.85169671]
[1748264209451,49.84198512,2571.2,2571.1,16.74108257]
[1748264210363,49.84198512,2571.2,2571.1,12.85169671]
[1748264210563,49.84198512,2571.2,2571.1,12.23391291]
[1748264211475,50.61983203,2571.2,2571.1,12.23391291]
[1748264211679,50.61983203,2571.2,2571.1,1.13906377]
[1748264211984,54.50583203,2571.2,2571.1,0.37056377]
[1748264212207,54.50583203,2571.2,2571.1,8.37056377]
[1748264213906,54.50583203,2571.2,2571.1,8.83315754]
[1748264217106,54.50583203,2571.2,2571.1,0.83315754]
[1748264217265,54.50583203,2571.2,2571.1,4.15967804]
[1748264217809,55.30413203,2571.2,2571.1,0.83315754]
[1748264217960,55.30413203,2571.2,2571.1,0.37056377]
[1748264218458,55.30413203,2571.2,2571.1,11.69708427]
[1748264218680,55.30413203,2571.2,2571.1,3.69708427]
[1748264218879,51.41813203,2571.2,2571.1,3.69708427]
[1748264219123,59.46013203,2571.2,2571.1,3.69708427]
[1748264221430,58.66183203,2571.2,2571.1,11.69708427]
[1748264224253,54.77583203,2571.2,2571.1,11.69708427]
[1748264224408,58.66183203,2571.2,2571.1,11.69708427]
[1748264225747,54.77583203,2571.2,2571.1,11.69708427]
[1748264226241,58.66183203,2571.2,2571.1,11.69708427]